fUST/lending_fUST_20240117
["ID","MTS","AMOUNT","RATE_DAILY","PERIOD"]
[311878357,1705485044558,-500.0,0.00022328,2]
[311878359,1705485044568,-742.7,0.00022328,2]
[311878361,1705485044578,-500.0,0.00022328,2]
[311878363,1705485044587,-500.0,0.00022328,2]
[311878365,1705485044597,-1017.67,0.00022328,2]
[311878367,1705485044606,-500.0,0.00022328,2]
[311878369,1705485044616,-500.0,0.00022328,2]
[311878371,1705485044626,-500.0,0.00022328,2]
[311878373,1705485044636,-1548.02,0.00022328,2]
[311878375,1705485044645,-500.0,0.00022328,2]
[311878377,1705485044654,-382.58669765,0.00022328,2]
[311878379,1705485044663,-500.0,0.00022328,2]
[311878381,1705485044672,-500.0,0.00022328,2]
[311878383,1705485044681,-500.0,0.00022328,2]
[311878385,1705485044691,-1152.55,0.00022328,2]
[311878387,1705485044700,-500.0,0.00022328,2]
[311878389,1705485044709,-539.81,0.00022328,2]
[311878391,1705485044718,-500.0,0.00022328,2]
[311878393,1705485044728,-876.73,0.00022328,2]
[311878395,1705485044737,-586.54466235,0.00022328,2]
[311878397,1705485044746,-500.0,0.00022328,2]
[311878399,1705485044756,-506.36136308,0.00022328,2]
[311878401,1705485044765,-500.0,0.00022328,2]
[311878403,1705485044774,-500.0,0.00022328,2]
[311878405,1705485044784,-500.0,0.00022328,2]
[311878407,1705485044793,-500.0,0.00022328,2]
[311878409,1705485044802,-500.0,0.00022328,2]
[311878411,1705485044811,-1762.09,0.00022328,2]
[311878413,1705485044821,-500.0,0.00022328,2]
[311878415,1705485044830,-500.0,0.00022328,2]
[311878417,1705485044839,-2445.38,0.00022328,2]
[311878419,1705485044848,-559.19,0.00022328,2]
[311878421,1705485044858,-444.85689834,0.00022328,2]
[311878423,1705485044869,-500.0,0.00022328,2]
[311878425,1705485044878,-500.0,0.00022328,2]
[311878426,1705485044889,-500.0,0.00022328,2]
[311878428,1705485044898,-3760.8,0.00022328,2]
[311878430,1705485044907,-528.42,0.00022328,2]
[311878433,1705485044918,-500.0,0.00022328,2]
[311878435,1705485044929,-500.0,0.00022328,2]
[311878436,1705485044939,-209.04329782,0.00022328,2]
[311878438,1705485044950,-500.0,0.00022328,2]
[311878440,1705485044960,-971.68,0.00022328,2]
[311878442,1705485044970,-500.0,0.00022328,2]
[311878445,1705485044979,-656.24,0.00022328,2]
[311878447,1705485044989,-500.0,0.00022328,2]
[311878448,1705485044999,-234.02972932,0.00022328,2]
[311878450,1705485045008,-500.0,0.00022328,2]
[311878452,1705485045018,-742.68,0.00022328,2]
[311878455,1705485045027,-500.0,0.00022328,2]
[311878456,1705485045037,-500.0,0.00022328,2]
[311878459,1705485045046,-2057.23,0.00022328,2]
[311878461,1705485045056,-505.24,0.00022328,2]
[311878462,1705485045065,-500.0,0.00022328,2]
[311878465,1705485045075,-1833.31,0.00022328,2]
[311878466,1705485045084,-500.0,0.00022328,2]
[311878468,1705485045093,-541.56,0.00022328,2]
[311878470,1705485045102,-3243.09,0.00022328,2]
[311878472,1705485045112,-611.52886073,0.00022328,2]
[311878474,1705485045121,-508.23812159,0.00022328,2]
[311878476,1705485045131,-500.0,0.00022328,2]
[311878478,1705485045141,-863.96,0.00022328,2]
[311878487,1705485045222,-500.0,0.00022328,2]
[311878489,1705485045231,-2826.75,0.00022328,2]
[311878491,1705485045240,-500.0,0.00022328,2]
[311878493,1705485045249,-500.0,0.00022328,2]
[311878495,1705485045258,-500.0,0.00022328,2]
[311878497,1705485045267,-500.0,0.00022328,2]
[311878499,1705485045277,-500.0,0.00022328,2]
[311878501,1705485045287,-509.07,0.00022328,2]
[311878503,1705485045296,-500.0,0.00022328,2]
[311878505,1705485045305,-500.0,0.00022328,2]
[311878507,1705485045316,-543.29,0.00022328,2]
[311878509,1705485045325,-31925.53,0.00022328,2]
[311878511,1705485045335,-6023.82,0.00022328,2]
[311878513,1705485045344,-500.0,0.00022328,2]
[311878515,1705485045354,-500.0,0.00022328,2]
[311878517,1705485045364,-815.96,0.00022328,2]
[311878521,1705485045372,-500.0,0.00022328,2]
[311878523,1705485045381,-500.0,0.00022328,2]
[311878527,1705485045390,-906.59,0.00022328,2]
[311878530,1705485045400,-465.15047462,0.00022328,2]
[311878532,1705485045408,-500.0,0.00022328,2]
[311878535,1705485045417,-500.0,0.00022328,2]
[311878538,1705485045428,-500.0,0.00022328,2]
[311878541,1705485045437,-500.0,0.00022328,2]
[311878544,1705485045446,-17270.7,0.00022328,2]
[311878546,1705485045456,-500.0,0.00022328,2]
[311878549,1705485045465,-2817.83,0.00022328,2]
[311878551,1705485045474,-500.0,0.00022328,2]
[311878553,1705485045483,-2814.25,0.00022328,2]
[311878555,1705485045492,-500.0,0.00022328,2]
[311878557,1705485045501,-500.0,0.00022328,2]
[311878559,1705485045510,-500.0,0.00022328,2]
[311878561,1705485045519,-2147.25,0.00022328,2]
[311878563,1705485045528,-500.0,0.00022328,2]
[311878565,1705485045537,-500.0,0.00022328,2]
[311878567,1705485045546,-1609.78,0.00022328,2]
[311878569,1705485045555,-500.0,0.00022328,2]
[311878571,1705485045564,-500.0,0.00022328,2]
[311878573,1705485045574,-7434.55,0.00022328,2]
[311878575,1705485045583,-500.0,0.00022328,2]
[311878577,1705485045592,-500.0,0.00022328,2]
[311878579,1705485045601,-500.0,0.00022328,2]
[311878581,1705485045611,-878.72,0.00022328,2]
[311878583,1705485045620,-500.0,0.00022328,2]
[311878585,1705485045629,-935.18,0.00022328,2]
[311878587,1705485045638,-500.0,0.00022328,2]
[311878589,1705485045647,-629.84713767,0.00022328,2]
[311878590,1705485045658,-1146.15,0.00022328,2]
[311878593,1705485045667,-1687.05,0.00022328,2]
[311878594,1705485045677,-1362.08,0.00022328,2]
[311878596,1705485045688,-500.0,0.00022328,2]
[311878598,1705485045697,-849.36,0.00022328,2]
[311878600,1705485045706,-500.0,0.00022328,2]
[311878602,1705485045715,-500.0,0.00022328,2]
[311878604,1705485045724,-500.0,0.00022328,2]
[311878606,1705485045734,-500.0,0.00022328,2]
[311878608,1705485045743,-1883.47,0.00022328,2]
[311878610,1705485045752,-7245.67,0.00022328,2]
[311878612,1705485045760,-500.0,0.00022328,2]
[311878614,1705485045770,-500.0,0.00022328,2]
[311878616,1705485045779,-1325.06,0.00022328,2]
[311878618,1705485045788,-9421.15,0.00022328,2]
[311878620,1705485045798,-153.0,0.000224,2]
[311878622,1705485045807,-166.666666,0.00022431,2]
[311878624,1705485045816,-151.0,0.00022465,2]
[311878626,1705485045826,-378.091753,0.00022465,2]
[311878628,1705485045836,-378.091753,0.00022465,2]
[311878630,1705485045845,-584.167224,0.00022465,2]
[311878632,1705485045854,-584.167224,0.00022465,2]
[311878634,1705485045865,-463.7706374,0.00022465,2]
[311878636,1705485045876,-551.41,0.00022465,2]
[311878638,1705485045885,-708.1,0.00022465,2]
[311878640,1705485045893,-380.75533972,0.00022465,2]
[311878642,1705485045903,-500.0,0.00022465,2]
[311878644,1705485045912,-780.54,0.00022465,2]
[311878646,1705485045922,-601.37,0.00022465,2]
[311878647,1705485045932,-604.88,0.00022465,2]
[311878648,1705485045941,-500.0,0.00022465,2]
[311878649,1705485045951,-547.01,0.00022465,2]
[311878650,1705485045960,-500.0,0.00022465,2]
[311878651,1705485045969,-500.0,0.00022465,2]
[311878652,1705485045978,-742.7,0.00022465,2]
[311878653,1705485045986,-1017.67,0.00022465,2]
[311878654,1705485045995,-500.0,0.00022465,2]
[311878655,1705485046004,-505.90431554,0.00022465,2]
[311878656,1705485046013,-500.0,0.00022465,2]
[311878658,1705485046023,-1548.02,0.00022465,2]
[311878660,1705485046032,-500.0,0.00022465,2]
[311878662,1705485046041,-500.0,0.00022465,2]
[311878664,1705485046050,-500.0,0.00022465,2]
[311878666,1705485046059,-1152.55,0.00022465,2]
[311878668,1705485046067,-539.81,0.00022465,2]
[311878670,1705485046077,-500.0,0.00022465,2]
[311878672,1705485046086,-876.73,0.00022465,2]
[311878674,1705485046095,-199.39250185,0.00022465,2]
[311878676,1705485046104,-500.0,0.00022465,2]
[311878678,1705485046113,-500.0,0.00022465,2]
[311878680,1705485046122,-503.30284957,0.00022465,2]
[311878682,1705485046132,-500.0,0.00022465,2]
[311878683,1705485046141,-182.9364757,0.00022465,2]
[311878686,1705485046152,-1762.09,0.00022465,2]
[311878687,1705485046161,-346.62671906,0.00022465,2]
[311878690,1705485046171,-500.0,0.00022465,2]
[311878691,1705485046184,-2445.38,0.00022465,2]
[311878694,1705485046194,-559.19,0.00022465,2]
[311878696,1705485046204,-500.0,0.00022465,2]
[311878697,1705485046213,-3760.8,0.00022465,2]
[311878699,1705485046222,-528.42,0.00022465,2]
[311878701,1705485046232,-500.0,0.00022465,2]
[311878703,1705485046242,-500.0,0.00022465,2]
[311878705,1705485046251,-258.35703301,0.00022465,2]
[311878707,1705485046260,-971.68,0.00022465,2]
[311878709,1705485046269,-500.0,0.00022465,2]
[311878711,1705485046278,-656.24,0.00022465,2]
[311878714,1705485046288,-302.98557895,0.00022465,2]
[311878715,1705485046297,-500.0,0.00022465,2]
[311878717,1705485046306,-742.68,0.00022465,2]
[311878719,1705485046315,-500.0,0.00022465,2]
[311878721,1705485046325,-500.0,0.00022465,2]
[311878723,1705485046334,-2057.23,0.00022465,2]
[311878725,1705485046343,-505.24,0.00022465,2]
[311878727,1705485046352,-500.0,0.00022465,2]
[311878729,1705485046361,-1833.31,0.00022465,2]
[311878731,1705485046370,-500.0,0.00022465,2]
[311878733,1705485046379,-541.56,0.00022465,2]
[311878741,1705485046446,-3243.09,0.00022465,2]
[311878744,1705485046455,-500.0,0.00022465,2]
[311878746,1705485046465,-863.96,0.00022465,2]
[311878748,1705485046474,-500.0,0.00022465,2]
[311878750,1705485046483,-2826.75,0.00022465,2]
[311878751,1705485046492,-519.27138741,0.00022465,2]
[311878753,1705485046502,-500.0,0.00022465,2]
[311878755,1705485046511,-500.0,0.00022465,2]
[311878757,1705485046520,-500.0,0.00022465,2]
[311878759,1705485046530,-500.0,0.00022465,2]
[311878761,1705485046540,-509.07,0.00022465,2]
[311878763,1705485046550,-500.0,0.00022465,2]
[311878766,1705485046558,-500.0,0.00022465,2]
[311878768,1705485046567,-543.29,0.00022465,2]
[311878770,1705485046576,-31925.53,0.00022465,2]
[311878771,1705485046585,-6023.82,0.00022465,2]
[311878774,1705485046595,-500.0,0.00022465,2]
[311878776,1705485046604,-500.0,0.00022465,2]
[311878778,1705485046613,-815.96,0.00022465,2]
[311878779,1705485046622,-500.0,0.00022465,2]
[311878782,1705485046631,-500.0,0.00022465,2]
[311878783,1705485046641,-906.59,0.00022465,2]
[311878786,1705485046650,-500.0,0.00022465,2]
[311878788,1705485046659,-500.0,0.00022465,2]
[311878789,1705485046668,-500.0,0.00022465,2]
[311878791,1705485046678,-500.0,0.00022465,2]
[311878794,1705485046688,-17270.7,0.00022465,2]
[311878795,1705485046697,-500.0,0.00022465,2]
[311878797,1705485046706,-2817.83,0.00022465,2]
[311878799,1705485046715,-500.0,0.00022465,2]
[311878801,1705485046724,-2814.25,0.00022465,2]
[311878803,1705485046733,-500.0,0.00022465,2]
[311878805,1705485046742,-500.0,0.00022465,2]
[311878807,1705485046751,-500.0,0.00022465,2]
[311878809,1705485046761,-2147.25,0.00022465,2]
[311878811,1705485046770,-500.0,0.00022465,2]
[311878813,1705485046779,-500.0,0.00022465,2]
[311878815,1705485046788,-1609.78,0.00022465,2]
[311878817,1705485046797,-500.0,0.00022465,2]
[311878820,1705485046806,-500.0,0.00022465,2]
[311878822,1705485046816,-7434.55,0.00022465,2]
[311878823,1705485046825,-500.0,0.00022465,2]
[311878825,1705485046834,-500.0,0.00022465,2]
[311878827,1705485046843,-500.0,0.00022465,2]
[311878829,1705485046852,-878.72,0.00022465,2]
[311878831,1705485046861,-500.0,0.00022465,2]
[311878833,1705485046875,-935.18,0.00022465,2]
[311878835,1705485046884,-500.0,0.00022465,2]
[311878837,1705485046893,-1146.15,0.00022465,2]
[311878839,1705485046902,-1687.05,0.00022465,2]
[311878842,1705485046911,-1362.08,0.00022465,2]
[311878843,1705485046920,-500.0,0.00022465,2]
[311878845,1705485046930,-849.36,0.00022465,2]
[311878847,1705485046939,-515.61152056,0.00022465,2]
[311878849,1705485046949,-500.0,0.00022465,2]
[311878852,1705485046959,-500.0,0.00022465,2]
[311878854,1705485046968,-1883.47,0.00022465,2]
[311878855,1705485046977,-7245.67,0.00022465,2]
[311878857,1705485046986,-500.0,0.00022465,2]
[311878859,1705485046995,-1325.06,0.00022465,2]
[311878861,1705485047005,-9421.15,0.00022465,2]
[311878863,1705485047014,-153.0,0.00022466,2]
[311878865,1705485047023,-155.490721,0.00022466,2]
[311878867,1705485047032,-153.0,0.00022466,2]
[311878869,1705485047042,-153.0,0.00022466,2]
[311878871,1705485047050,-153.0,0.00022466,2]
[311878873,1705485047059,-153.0,0.00022466,2]
[311878875,1705485047068,-168.54285343,0.000225,2]
[311878878,1705485047078,-620.93194379,0.00022522,2]
[311878879,1705485047087,-151.0,0.00022602,2]
[311878881,1705485047096,-232.109022,0.00022602,2]
[311878883,1705485047106,-151.0,0.00022602,2]
[311878885,1705485047115,-151.0,0.00022602,2]
[311878888,1705485047124,-151.0,0.00022602,2]
[311878889,1705485047133,-378.091753,0.00022602,2]
[311878891,1705485047142,-378.091753,0.00022602,2]
[311878894,1705485047152,-584.167224,0.00022602,2]
[311878895,1705485047162,-584.167224,0.00022602,2]
[311878897,1705485047171,-551.41,0.00022602,2]
[311878899,1705485047181,-708.1,0.00022602,2]
[311878901,1705485047190,-500.0,0.00022602,2]
[311878904,1705485047200,-780.54,0.00022602,2]
[311878906,1705485047209,-601.37,0.00022602,2]
[311878908,1705485047218,-604.88,0.00022602,2]
[311878909,1705485047228,-500.0,0.00022602,2]
[311878912,1705485047238,-547.01,0.00022602,2]
[311878913,1705485047247,-500.0,0.00022602,2]
[311878916,1705485047256,-500.0,0.00022602,2]
[311878917,1705485047266,-742.7,0.00022602,2]
[311878919,1705485047275,-1017.67,0.00022602,2]
[311878921,1705485047284,-500.0,0.00022602,2]
[311878923,1705485047294,-500.0,0.00022602,2]
[311878926,1705485047303,-1548.02,0.00022602,2]
[311878928,1705485047313,-500.0,0.00022602,2]
[311878930,1705485047322,-167.60150433,0.00022602,2]
[311878932,1705485047332,-500.0,0.00022602,2]
[311878934,1705485047341,-1152.55,0.00022602,2]
[311878936,1705485047351,-539.81,0.00022602,2]
[311878938,1705485047360,-500.0,0.00022602,2]
[311878939,1705485047370,-876.73,0.00022602,2]
[311878942,1705485047379,-500.0,0.00022602,2]
[311878944,1705485047388,-588.73529456,0.00022602,2]
[311878945,1705485047397,-500.0,0.00022602,2]
[311878947,1705485047407,-1762.09,0.00022602,2]
[311878950,1705485047416,-500.0,0.00022602,2]
[311878951,1705485047425,-2445.38,0.00022602,2]
[311878953,1705485047434,-559.19,0.00022602,2]
[311878955,1705485047444,-500.0,0.00022602,2]
[311878958,1705485047453,-3760.8,0.00022602,2]
[311878959,1705485047462,-528.42,0.00022602,2]
[311878962,1705485047472,-500.0,0.00022602,2]
[311878963,1705485047481,-500.0,0.00022602,2]
[311878965,1705485047490,-971.68,0.00022602,2]
[311878968,1705485047499,-500.0,0.00022602,2]
[311878969,1705485047509,-656.24,0.00022602,2]
[311878977,1705485047571,-500.0,0.00022602,2]
[311878979,1705485047580,-742.68,0.00022602,2]
[311878981,1705485047589,-500.0,0.00022602,2]
[311878983,1705485047598,-619.60676546,0.00022602,2]
[311878985,1705485047607,-2057.23,0.00022602,2]
[311878987,1705485047616,-505.24,0.00022602,2]
[311878989,1705485047625,-500.0,0.00022602,2]
[311878991,1705485047634,-1833.31,0.00022602,2]
[311878993,1705485047643,-500.0,0.00022602,2]
[311878995,1705485047652,-541.56,0.00022602,2]
[311878997,1705485047661,-3243.09,0.00022602,2]
[311878999,1705485047670,-500.0,0.00022602,2]
[311879001,1705485047681,-863.96,0.00022602,2]
[311879003,1705485047690,-500.0,0.00022602,2]
[311879005,1705485047700,-2826.75,0.00022602,2]
[311879007,1705485047709,-500.0,0.00022602,2]
[311879009,1705485047718,-190.52563167,0.00022602,2]
[311879011,1705485047727,-500.0,0.00022602,2]
[311879013,1705485047736,-500.0,0.00022602,2]
[311879015,1705485047745,-509.07,0.00022602,2]
[311879017,1705485047754,-500.0,0.00022602,2]
[311879019,1705485047763,-500.0,0.00022602,2]
[311879021,1705485047772,-543.29,0.00022602,2]
[311879023,1705485047781,-31925.53,0.00022602,2]
[311879025,1705485047790,-6023.82,0.00022602,2]
[311879027,1705485047799,-500.0,0.00022602,2]
[311879029,1705485047808,-500.0,0.00022602,2]
[311879031,1705485047816,-815.96,0.00022602,2]
[311879033,1705485047825,-500.0,0.00022602,2]
[311879035,1705485047834,-906.59,0.00022602,2]
[311879037,1705485047843,-500.0,0.00022602,2]
[311879039,1705485047852,-500.0,0.00022602,2]
[311879041,1705485047866,-500.0,0.00022602,2]
[311879043,1705485047883,-500.0,0.00022602,2]
[311879045,1705485047895,-17270.7,0.00022602,2]
[311879047,1705485047904,-500.0,0.00022602,2]
[311879049,1705485047913,-2817.83,0.00022602,2]
[311879051,1705485047922,-500.0,0.00022602,2]
[311879053,1705485047933,-2814.25,0.00022602,2]
[311879055,1705485047942,-500.0,0.00022602,2]
[311879057,1705485047952,-500.0,0.00022602,2]
[311879059,1705485047961,-608.64434299,0.00022602,2]
[311879061,1705485047970,-2147.25,0.00022602,2]
[311879063,1705485047979,-500.0,0.00022602,2]
[311879065,1705485047989,-1609.78,0.00022602,2]
[311879067,1705485047998,-224.20797195,0.00022602,2]
[311879069,1705485048008,-500.0,0.00022602,2]
[311879071,1705485048017,-7434.55,0.00022602,2]
[311879073,1705485048026,-500.0,0.00022602,2]
[311879075,1705485048035,-500.0,0.00022602,2]
[311879077,1705485048045,-500.0,0.00022602,2]
[311879079,1705485048055,-878.72,0.00022602,2]
[311879081,1705485048064,-500.0,0.00022602,2]
[311879083,1705485048074,-935.18,0.00022602,2]
[311879085,1705485048083,-500.0,0.00022602,2]
[311879087,1705485048092,-1146.15,0.00022602,2]
[311879089,1705485048102,-1687.05,0.00022602,2]
[311879091,1705485048112,-500.0,0.00022602,2]
[311879093,1705485048122,-1362.08,0.00022602,2]
[311879095,1705485048132,-849.36,0.00022602,2]
[311879097,1705485048141,-500.0,0.00022602,2]
[311879099,1705485048151,-500.0,0.00022602,2]
[311879101,1705485048160,-1883.47,0.00022602,2]
[311879103,1705485048170,-7245.67,0.00022602,2]
[311879105,1705485048180,-500.0,0.00022602,2]
[311879107,1705485048190,-1325.06,0.00022602,2]
[311879109,1705485048200,-9421.15,0.00022602,2]
[311879111,1705485048209,-1663.80531557,0.00022688,2]
[311879113,1705485048218,-151.0,0.00022739,2]
[311879115,1705485048228,-378.091753,0.00022739,2]
[311879117,1705485048237,-378.091753,0.00022739,2]
[311879119,1705485048246,-584.167224,0.00022739,2]
[311879120,1705485048256,-584.167224,0.00022739,2]
[311879122,1705485048265,-551.41,0.00022739,2]
[311879124,1705485048275,-708.1,0.00022739,2]
[311879127,1705485048285,-205.51801189,0.00022739,2]
[311879129,1705485048296,-780.54,0.00022739,2]
[311879130,1705485048306,-601.37,0.00022739,2]
[311879132,1705485048315,-604.88,0.00022739,2]
[311879134,1705485048325,-500.0,0.00022739,2]
[311879136,1705485048335,-547.01,0.00022739,2]
[311879138,1705485048345,-500.0,0.00022739,2]
[311879141,1705485048355,-259.75011283,0.00022739,2]
[311879143,1705485048365,-742.7,0.00022739,2]
[311879144,1705485048378,-1017.67,0.00022739,2]
[311879146,1705485048387,-500.0,0.00022739,2]
[311879149,1705485048397,-500.0,0.00022739,2]
[311879151,1705485048412,-1548.02,0.00022739,2]
[311879152,1705485048422,-500.0,0.00022739,2]
[311879154,1705485048433,-500.0,0.00022739,2]
[311879157,1705485048444,-1152.55,0.00022739,2]
[311879159,1705485048454,-539.81,0.00022739,2]
[311879160,1705485048464,-500.0,0.00022739,2]
[311879162,1705485048474,-876.73,0.00022739,2]
[311879165,1705485048484,-500.0,0.00022739,2]
[311879166,1705485048493,-500.0,0.00022739,2]
[311879169,1705485048504,-1762.09,0.00022739,2]
[311879170,1705485048513,-500.0,0.00022739,2]
[311879173,1705485048523,-2445.38,0.00022739,2]
[311879175,1705485048535,-559.19,0.00022739,2]
[311879177,1705485048544,-500.0,0.00022739,2]
[311879179,1705485048553,-3760.8,0.00022739,2]
[311879180,1705485048562,-500.0,0.00022739,2]
[311879183,1705485048571,-528.42,0.00022739,2]
[311879184,1705485048581,-592.28485347,0.00022739,2]
[311879187,1705485048591,-971.68,0.00022739,2]
[311879194,1705485048601,-500.0,0.00022739,2]
[311879196,1705485048661,-656.24,0.00022739,2]
[311879198,1705485048671,-500.0,0.00022739,2]
[311879200,1705485048681,-742.68,0.00022739,2]
[311879202,1705485048690,-500.0,0.00022739,2]
[311879204,1705485048699,-2057.23,0.00022739,2]
[311879206,1705485048709,-505.24,0.00022739,2]
[311879208,1705485048719,-500.0,0.00022739,2]
[311879210,1705485048729,-1833.31,0.00022739,2]
[311879212,1705485048739,-305.08682904,0.00022739,2]
[311879214,1705485048748,-541.56,0.00022739,2]
[311879216,1705485048756,-3243.09,0.00022739,2]
[311879218,1705485048765,-500.0,0.00022739,2]
[311879220,1705485048775,-505.42235422,0.00022739,2]
[311879222,1705485048784,-2826.75,0.00022739,2]
[311879224,1705485048793,-863.96,0.00022739,2]
[311879226,1705485048802,-500.0,0.00022739,2]
[311879228,1705485048811,-500.0,0.00022739,2]
[311879230,1705485048820,-500.0,0.00022739,2]
[311879232,1705485048829,-509.07,0.00022739,2]
[311879234,1705485048838,-500.0,0.00022739,2]
[311879236,1705485048847,-500.0,0.00022739,2]
[311879238,1705485048856,-543.29,0.00022739,2]
[311879240,1705485048865,-23686.36532375,0.00022739,2]
[311879256,1705485049010,-6622.12064541,0.00022739,2]
[311879281,1705485049231,-1155.10419659,0.00021917,2]
[311879558,1705486116097,2706.2756614,0.00019197,5]
[311879584,1705486232043,-154.98450155,0.00019174,3]
[311879585,1705486232053,-246.39706185,0.00019175,2]
[311879586,1705486232062,-175.379653,0.00019178,2]
[311879587,1705486232071,-1380.58447264,0.00019208,2]
[311879588,1705486232082,-328.337004,0.0001921,2]
[311879589,1705486232091,-21667.37739351,0.00019301,2]
[311879590,1705486232100,-24429.9574459,0.00019302,2]
[311879592,1705486232110,-804.51916644,0.00019724,2]
[311879594,1705486232120,-616.51710907,0.0002021,2]
[311879596,1705486232130,-154.98450155,0.00020211,2]
[311879598,1705486232139,-12876.22272016,0.00020212,2]
[311879600,1705486232147,-200.0,0.0002123,7]
[311879602,1705486232158,-6192.32,0.0002152,3]
[311879604,1705486232167,-7430.79,0.0002153,3]
[311879606,1705486232175,-8916.94,0.0002154,3]
[311879608,1705486232185,-9111.67082876,0.0002155,2]
[311879610,1705486232194,-1986.07008117,0.00021696,2]
[311879612,1705486232203,-163.80830827,0.00021817,2]
[311879614,1705486232212,-3126.53628743,0.00021915,2]
[311879616,1705486232221,-361.0943622,0.00021915,2]
[311879618,1705486232233,-687.07152181,0.00021915,2]
[311879620,1705486232243,-1129.29306651,0.00021915,2]
[311879622,1705486232253,-155.0,0.00021915,2]
[311879624,1705486232263,-156.10545261,0.00021915,2]
[311879626,1705486232274,-475.03025336,0.00021915,5]
[311879628,1705486232283,-6272.99382603,0.00021915,2]
[311879630,1705486232293,-3980.85546298,0.00021916,2]
[311879632,1705486232303,-200.0,0.00021917,2]
[311879634,1705486232313,-500.0,0.00021917,2]
[311879636,1705486232323,-500.0,0.00021917,2]
[311879638,1705486232333,-500.0,0.00021917,2]
[311879640,1705486232342,-164.71281458,0.00021917,2]
[311879642,1705486232352,-500.0,0.00021917,2]
[311879644,1705486232361,-500.0,0.00021917,2]
[311879646,1705486232370,-500.0,0.00021917,2]
[311879647,1705486232379,-500.0,0.00021917,2]
[311879648,1705486232388,-500.0,0.00021917,2]
[311879649,1705486232398,-500.0,0.00021917,2]
[311879650,1705486232409,-500.0,0.00021917,2]
[311879651,1705486232418,-500.0,0.00021917,2]
[311879652,1705486232427,-508.74722001,0.00021917,2]
[311879653,1705486232436,-500.0,0.00021917,2]
[311879654,1705486232445,-500.0,0.00021917,2]
[311879655,1705486232455,-500.0,0.00021917,2]
[311879656,1705486232465,-38.15746861,0.00021917,2]
[311879684,1705486238037,-253.03416128,0.0002,2]
[311879687,1705486238049,-46.96583872,0.0002,2]
[311879689,1705486238058,-461.84253139,0.00021917,2]
[311879691,1705486238067,-500.0,0.00021917,2]
[311879693,1705486238076,-500.0,0.00021917,2]
[311879695,1705486238085,-500.0,0.00021917,2]
[311879696,1705486238094,-500.0,0.00021917,2]
[311879698,1705486238103,-500.0,0.00021917,2]
[311879701,1705486238113,-500.0,0.00021917,2]
[311879703,1705486238122,-414.98765189,0.00021917,2]
[311879705,1705486238132,-500.0,0.00021917,2]
[311879707,1705486238141,-182.9364757,0.00021917,2]
[311879709,1705486238151,-507.03929807,0.00021917,2]
[311879711,1705486238161,-500.0,0.00021917,2]
[311879713,1705486238169,-500.0,0.00021917,2]
[311879715,1705486238178,-500.0,0.00021917,2]
[311879717,1705486238187,-500.0,0.00021917,2]
[311879719,1705486238197,-500.0,0.00021917,2]
[311879721,1705486238205,-500.0,0.00021917,2]
[311879722,1705486238223,-101.58696916,0.00021917,2]